bitfinex-derivatives/quotes_SOLF0:USTF0_20250520
["timestamp","ask_amount","ask_price","bid_price","bid_amount"]
[1747770385638,0.04196693,167.44,167.42,5.9711]
[1747770385935,0.04196693,167.44,167.41,0.0391091]
[1747770386236,0.04196693,167.44,167.43,5.9708]
[1747770387337,0.04196693,167.44,167.42,5.9711]
[1747770387575,0.04196693,167.44,167.41,96.4791091]
[1747770387842,0.04196693,167.44,167.43,5.9708]
[1747770389046,0.04196693,167.44,167.41,96.4791091]
[1747770389543,0.04196693,167.44,167.42,5.9711]
[1747770390543,0.04196693,167.44,167.43,5.9708]
[1747770391738,0.04196693,167.44,167.42,5.9711]
[1747770392850,0.04196693,167.44,167.41,0.0391091]
[1747770393541,6.01256693,167.44,167.41,6.0104091]
[1747770394250,0.04196693,167.44,167.42,5.9712]
[1747770395149,0.04196693,167.44,167.43,5.9708]
[1747770397347,0.04196693,167.44,167.42,96.42]
[1747770398350,0.04196693,167.44,167.43,5.9708]
[1747770402651,5.9681,167.51,167.42,96.42]
[1747770402948,1.9342,167.53,167.5,5.9682]
[1747770403158,2.0296,167.57,167.46,96.42]
[1747770403456,5.9664,167.56,167.5,0.04316936]
[1747770403655,3.8784,167.59,167.5,96.46316936]
[1747770404043,1.9342,167.59,167.5,96.46316936]
[1747770404760,1.9342,167.59,167.55,5.9664]
[1747770405062,1.9342,167.59,167.55,0.03991772]
[1747770405353,96.42,167.63,167.55,0.03991772]
[1747770405754,5.965,167.6,167.55,0.03991772]
[1747770406353,5.965,167.6,167.57,5.9656]
[1747770406651,96.42,167.63,167.55,0.03991772]
[1747770407358,96.42,167.63,167.57,5.9657]
[1747770408160,96.42,167.63,167.58,5.9654]
[1747770408361,96.42,167.63,167.59,0.04573268]
[1747770410562,5.9647,167.61,167.59,0.04573268]
[1747770411260,5.9642,167.62,167.59,0.04573268]
[1747770411559,96.42,167.63,167.59,0.04573268]
[1747770411872,1.9331,167.64,167.59,0.04573268]
[1747770412361,7.8962,167.64,167.6,5.9642]
[1747770412557,7.8962,167.64,167.59,0.04573268]
[1747770412958,1.9924,167.67,167.59,0.04573268]
[1747770413154,94.8,167.69,167.59,0.04573268]
[1747770413454,94.8,167.69,167.62,0.03827229]
[1747770413864,5.962,167.67,167.63,5.9632]
[1747770414350,5.962,167.67,167.62,0.03827229]
[1747770414755,5.9617,167.68,167.64,5.9628]
[1747770414955,5.9617,167.68,167.62,0.03827229]
[1747770415157,5.9617,167.68,167.62,94.83827229]
[1747770415350,5.9617,167.68,167.64,5.9628]
[1747770415555,5.962,167.67,167.62,94.83827229]
[1747770415757,2.0145,167.7,167.65,5.9625]
[1747770415948,5.9615,167.69,167.66,0.04310491]
[1747770416149,2.0145,167.7,167.66,0.04310491]
[1747770416863,2.0145,167.7,167.67,5.9617]
[1747770417563,2.0145,167.7,167.68,5.9615]
[1747770418223,2.0145,167.7,167.67,5.9617]
[1747770418664,3.07055766,167.71,167.66,0.04310491]
[1747770419265,3.07055766,167.71,167.69,5.961]
[1747770419768,3.07055766,167.71,167.66,94.82310491]
[1747770419955,3.07055766,167.71,167.68,5.9612]
[1747770420263,3.07055766,167.71,167.66,0.04310491]
[1747770420650,5.9613,167.69,167.66,0.04310491]
[1747770420963,3.07055766,167.71,167.66,0.04310491]
[1747770421665,3.07055766,167.71,167.69,5.961]
[1747770422362,3.07055766,167.71,167.7,5.9607]
[1747770425062,3.07055766,167.71,167.67,94.74]
[1747770425585,3.07055766,167.71,167.68,5.9611]
[1747770425965,3.07055766,167.71,167.68,5.9613]
[1747770426167,3.07055766,167.71,167.67,94.74]
[1747770426658,5.9608,167.7,167.66,6.00500491]
[1747770426855,5.9608,167.7,167.66,0.04310491]
[1747770427272,5.9608,167.7,167.66,6.00510491]
[1747770427563,5.9611,167.69,167.66,0.04310491]
[1747770428165,5.9608,167.7,167.66,0.04310491]
[1747770428362,5.12365766,167.71,167.66,0.04310491]
[1747770428867,5.12365766,167.71,167.66,6.00510491]
[1747770429163,5.12365766,167.71,167.66,0.04310491]
[1747770429557,5.12365766,167.71,167.61,94.72]
[1747770429558,9.97837189,167.7,167.61,94.72]
[1747770429753,5.9612,167.69,167.6,94.72]
[1747770429961,5.9612,167.69,167.64,5.9625]
[1747770430364,15.05785275,167.71,167.64,5.9625]
[1747770430565,0.04089872,167.69,167.66,0.04003745]
[1747770430964,5.9615,167.68,167.66,0.04003745]
[1747770431164,0.04089872,167.69,167.66,0.04003745]
[1747770431470,5.962,167.67,167.6,94.72]
[1747770431972,15.05785275,167.71,167.62,5.9635]
[1747770432369,0.04481398,167.68,167.65,0.04149015]
[1747770433068,5.9618,167.67,167.65,0.04149015]
[1747770433273,0.04481398,167.68,167.65,0.04149015]
[1747770433573,5.9621,167.66,167.65,0.04149015]
[1747770433773,13.85100907,167.68,167.56,94.72]
[1747770434072,9.93419509,167.65,167.56,94.72]
[1747770434269,104.65419509,167.65,167.56,94.72]
[1747770434469,94.72,167.65,167.56,94.72]
[1747770434659,9.93419509,167.67,167.56,94.72]
[1747770434660,0.0454547,167.62,167.59,0.0429135]
[1747770434971,0.0454547,167.62,167.61,5.9639]
[1747770436071,0.0454547,167.62,167.59,94.7629135]
[1747770436574,0.0454547,167.62,167.59,100.7272135]
[1747770436873,0.0454547,167.62,167.59,94.7629135]
[1747770437575,0.0454547,167.62,167.59,100.7275135]
[1747770438067,6.0093547,167.62,167.59,0.0429135]
[1747770438269,0.0454547,167.62,167.59,0.0429135]
[1747770438974,0.0454547,167.62,167.59,6.0075135]
[1747770439179,0.0454547,167.62,167.59,0.0429135]
[1747770440173,0.0454547,167.62,167.61,5.9639]
[1747770440379,0.0454547,167.62,167.61,100.7039]
[1747770440769,1.888,167.7,167.66,5.962]
[1747770441274,1.888,167.7,167.61,94.74]
[1747770441275,7.8489,167.7,167.61,94.74]
[1747770441577,1.888,167.7,167.61,94.74]
[1747770441779,0.04010875,167.67,167.64,0.03993598]
[1747770444477,6.00200875,167.67,167.64,0.03993598]
[1747770447286,6.00200875,167.67,167.64,6.00273598]
[1747770447787,0.04010875,167.67,167.64,0.03993598]
[1747770449993,6.00190875,167.67,167.64,6.00263598]
[1747770450183,6.00190875,167.67,167.64,0.03993598]
[1747770450891,6.00190875,167.67,167.64,6.00253598]
[1747770451086,0.04010875,167.67,167.64,0.03993598]
[1747770452397,6.00210875,167.67,167.64,0.03993598]
[1747770452692,0.04010875,167.67,167.64,6.00253598]
[1747770453191,0.04010875,167.67,167.65,5.9622]
[1747770454190,0.04010875,167.67,167.66,5.9621]
[1747770454891,3.07055766,167.71,167.7,5.9607]
[1747770456693,3.07055766,167.71,167.69,100.14242605]
[1747770456895,3.07055766,167.71,167.69,94.18152605]
[1747770457496,3.07055766,167.71,167.69,100.14222605]
[1747770457794,3.07055766,167.71,167.69,0.04152605]
[1747770457993,9.03085766,167.71,167.69,0.04152605]
[1747770458597,3.07055766,167.71,167.69,6.00242605]
[1747770459098,3.07055766,167.71,167.7,5.9607]
[1747770461328,3.07055766,167.71,167.7,100.0807]
[1747770469299,3.07055766,167.71,167.7,5.9607]
[1747770472702,3.07055766,167.71,167.69,0.04152605]
[1747770472897,3.07055766,167.71,167.6,94.0]
[1747770473091,3.07055766,167.71,167.61,11.22515243]
[1747770473499,3.07055766,167.71,167.7,5.9607]
[1747770479007,3.07055766,167.71,167.7,5.7607]
[1747770479202,3.07055766,167.71,167.7,99.7807]
[1747770480307,9.93419509,167.82,167.7,94.02]
[1747770480512,94.02,167.83,167.71,11.92259509]
[1747770481102,1.9288,167.84,167.71,11.92259509]
[1747770481303,0.0412252,167.79,167.76,0.04540404]
[1747770481523,0.0412252,167.79,167.78,5.9575]
[1747770483213,0.0412252,167.79,167.77,5.9581]
[1747770483630,0.0412252,167.79,167.76,0.04540404]
[1747770484119,0.0412252,167.79,167.77,5.9582]
[1747770484915,0.0412252,167.79,167.76,0.04540404]
[1747770485414,0.0412252,167.79,167.76,6.00390404]
[1747770486114,0.0412252,167.79,167.76,0.04540404]
[1747770486618,5.9988252,167.79,167.76,0.04540404]
[1747770487205,5.9988252,167.79,167.76,6.00390404]
[1747770487410,0.0412252,167.79,167.76,0.04540404]
[1747770488222,5.9988252,167.79,167.76,0.04540404]
[1747770488411,0.0412252,167.79,167.76,0.04540404]
[1747770488617,0.0412252,167.79,167.78,5.9579]
[1747770491914,1.9288,167.84,167.83,5.9561]
[1747770492122,1.9288,167.84,167.8,93.98]
[1747770492305,1.9288,167.84,167.73,9.93419509]
[1747770492511,1.9288,167.84,167.74,93.98]
[1747770492726,7.8846,167.84,167.74,93.98]
[1747770492914,1.9288,167.84,167.77,0.04461851]
[1747770493216,5.9574,167.8,167.77,0.04461851]
[1747770493425,1.9288,167.84,167.77,0.04461851]
[1747770494326,5.9568,167.82,167.77,6.00251851]
[1747770494625,1.9288,167.84,167.77,6.00251851]
[1747770495013,1.9288,167.84,167.77,0.04461851]
[1747770495720,7.8847,167.84,167.77,0.04461851]
[1747770496113,7.8847,167.84,167.81,5.9567]
[1747770496314,7.8847,167.84,167.81,5.99855001]
[1747770496514,5.9561,167.83,167.81,0.04185001]
[1747770496723,1.9288,167.84,167.81,0.04185001]
[1747770497125,5.9563,167.83,167.81,0.04185001]
[1747770497323,103.91419509,167.9,167.81,0.04185001]
[1747770497625,2.1018,167.88,167.82,5.9563]
[1747770498126,5.9556,167.85,167.82,5.9563]
[1747770498347,2.1018,167.88,167.82,5.9563]
[1747770498625,5.9548,167.87,167.81,0.04185001]
[1747770498826,2.1018,167.88,167.81,0.04185001]
[1747770499126,2.1018,167.88,167.84,5.9555]
[1747770499427,2.1018,167.88,167.81,0.04185001]
[1747770500321,2.1018,167.88,167.84,5.9556]
[1747770500527,2.1018,167.88,167.81,0.04185001]
[1747770500927,2.1018,167.88,167.83,5.9558]
[1747770501221,2.1018,167.88,167.81,0.04185001]
[1747770501460,2.1018,167.88,167.84,5.9557]
[1747770501618,2.1018,167.88,167.81,0.04185001]
[1747770502124,5.9549,167.87,167.82,5.9562]
[1747770502327,2.1018,167.88,167.82,5.9562]
[1747770502628,5.9547,167.87,167.82,5.9562]
[1747770503121,2.1018,167.88,167.82,5.9562]
[1747770503434,5.9554,167.85,167.82,5.9562]
[1747770503620,2.1018,167.88,167.81,0.04185001]
[1747770504022,5.9554,167.85,167.81,0.04185001]
[1747770504223,2.1018,167.88,167.81,0.04185001]
[1747770505524,5.9563,167.83,167.81,0.04185001]
[1747770506334,2.1018,167.88,167.81,0.04185001]
[1747770507135,5.9563,167.83,167.81,0.04185001]
[1747770508231,5.9564,167.82,167.81,0.04185001]
[1747770513045,2.1018,167.88,167.81,0.04185001]
[1747770513540,9.93419509,167.83,167.74,93.92]
[1747770513936,93.92,167.85,167.74,93.92]
[1747770514131,9.93419509,167.87,167.74,93.92]
[1747770514327,103.85419509,167.87,167.74,93.92]
[1747770514543,0.04482776,167.82,167.8,5.9569]
[1747770514738,0.04482776,167.82,167.79,93.96587499]
[1747770515141,6.00142776,167.82,167.79,99.92317499]
[1747770516240,5.9568,167.81,167.79,93.96587499]
[1747770516738,5.9571,167.81,167.79,0.04587499]
[1747770518240,5.9571,167.8,167.79,0.04587499]
[1747770521554,7.8876,167.81,167.79,0.04587499]
[1747770521757,1.9307,167.81,167.79,0.04587499]
[1747770522252,5.9571,167.8,167.79,0.04587499]
[1747770522953,0.04482776,167.82,167.79,0.04587499]
[1747770523156,0.04482776,167.82,167.81,5.9568]
[1747770529169,5.95062776,167.84,167.79,0.04587499]
[1747770529666,5.95062776,167.84,167.81,5.9566]
[1747770531366,93.92,167.87,167.79,0.04587499]
[1747770531971,5.9566,167.82,167.79,6.00307499]
[1747770532468,5.9566,167.82,167.8,5.9571]
[1747770532769,5.9566,167.82,167.79,0.04587499]
[1747770533570,5.9566,167.82,167.8,5.9569]
[1747770533771,5.9568,167.81,167.79,0.04587499]
[1747770533966,93.92,167.87,167.79,0.04587499]
[1747770534169,93.92,167.87,167.79,6.00317499]
[1747770535469,5.9567,167.82,167.79,6.00317499]
[1747770535670,93.92,167.87,167.79,6.00317499]
[1747770536570,5.9568,167.81,167.79,6.00317499]
[1747770537368,93.92,167.87,167.79,6.00317499]
[1747770537570,9.93419509,167.86,167.79,0.04587499]
[1747770537765,93.92,167.87,167.79,0.04587499]
[1747770537970,103.85419509,167.87,167.79,0.04587499]
[1747770538363,5.9571,167.8,167.79,0.04587499]
[1747770540477,5.9588,167.76,167.74,93.86]
[1747770540671,2.0828,167.82,167.74,93.86]
[1747770540870,5.958,167.78,167.75,5.9587]
[1747770541076,2.0828,167.82,167.75,5.9587]
[1747770541378,0.04240195,167.8,167.77,0.04399531]
[1747770542576,5.9581,167.78,167.77,0.04399531]
[1747770543077,0.04240195,167.8,167.77,0.04399531]
[1747770543668,0.04240195,167.8,167.78,5.9577]
[1747770543973,5.99960195,167.8,167.78,5.9577]
[1747770544375,0.04240195,167.8,167.78,5.9577]
[1747770544677,0.04240195,167.8,167.79,5.9575]
[1747770547275,5.94850195,167.83,167.78,93.88]
[1747770547584,5.94850195,167.83,167.8,5.9569]
[1747770548077,5.9559,167.84,167.81,5.9565]
[1747770548275,5.9559,167.84,167.81,0.04176947]
[1747770548777,5.9559,167.84,167.81,5.99826947]
[1747770549775,5.9559,167.84,167.82,5.9564]
[1747770549976,5.9559,167.84,167.81,0.04176947]
[1747770550981,1.9404,167.88,167.81,0.04176947]
[1747770551277,114.83340284,167.93,167.82,93.86]
[1747770551479,5.9536,167.9,167.86,0.03897751]
[1747770552185,116.77460284,167.93,167.86,0.03897751]
[1747770553284,5.9546,167.87,167.86,0.03897751]
[1747770556584,5.9544,167.88,167.86,0.03897751]
[1747770557084,5.9537,167.9,167.86,93.87897751]
[1747770557583,5.9537,167.9,167.87,5.9546]
[1747770558087,5.954,167.89,167.86,93.87897751]
[1747770558273,1.9412,167.93,167.86,0.03897751]
[1747770558477,11.87539509,167.93,167.86,0.03897751]
[1747770558776,5.9546,167.87,167.86,0.03897751]
[1747770559785,5.9561,167.83,167.81,5.9566]
[1747770560285,5.956,167.84,167.81,5.9566]
[1747770560789,0.04010496,167.84,167.81,5.99445961]
[1747770560987,0.04010496,167.84,167.81,0.03785961]
[1747770562089,5.9562,167.83,167.81,0.03785961]
[1747770562689,5.99590496,167.84,167.81,5.99455961]
[1747770563091,0.04010496,167.84,167.81,0.03785961]
[1747770563988,5.9564,167.82,167.81,0.03785961]
[1747770565386,0.04010496,167.84,167.81,0.03785961]
[1747770565587,0.04010496,167.84,167.83,5.956]
[1747770566090,3.9613,167.93,167.86,5.9548]
[1747770566495,5.9543,167.88,167.86,5.9548]
[1747770567093,5.955,167.86,167.85,0.04413234]
[1747770568189,97.7213,167.93,167.85,0.04413234]
[1747770568690,5.954,167.89,167.85,0.04413234]
[1747770568992,5.954,167.89,167.86,5.9548]
[1747770569194,5.9542,167.88,167.85,0.04413234]
[1747770569491,5.9542,167.88,167.85,5.99933234]
[1747770569691,97.7213,167.93,167.85,5.99933234]
[1747770570592,5.9544,167.88,167.85,5.99933234]
[1747770572126,97.7213,167.93,167.85,0.04413234]
[1747770572292,3.9613,167.93,167.86,93.74]
[1747770572693,5.9541,167.89,167.86,93.74]
[1747770573100,5.9541,167.89,167.86,99.6947]
[1747770573496,5.9544,167.88,167.86,93.74]
[1747770573991,3.9613,167.93,167.86,93.74]
[1747770574191,13.89549509,167.93,167.85,0.04413234]
[1747770574989,5.9549,167.86,167.85,0.04413234]
[1747770575198,1.9303,167.93,167.85,0.04413234]
[1747770575390,5.9533,167.91,167.85,0.04413234]
[1747770575695,1.9303,167.93,167.87,5.9543]
[1747770575898,5.954,167.89,167.85,0.04413234]
[1747770576400,1.9303,167.93,167.85,0.04413234]
[1747770576795,1.9303,167.93,167.86,5.9549]
[1747770577199,5.9539,167.89,167.86,5.9549]
[1747770577605,1.9303,167.93,167.86,5.9549]
[1747770577898,5.9544,167.88,167.85,5.99923234]
[1747770578299,5.954,167.89,167.86,5.9548]
[1747770578995,1.9303,167.93,167.85,0.04413234]
[1747770578996,1.9303,167.93,167.85,5.99923234]
[1747770579498,1.9303,167.93,167.85,0.04413234]
[1747770580098,1.9303,167.93,167.86,5.9547]
[1747770580501,5.9541,167.89,167.86,5.9547]
[1747770580697,1.9303,167.93,167.85,0.04413234]
[1747770581101,5.9548,167.87,167.85,0.04413234]
[1747770581407,1.9303,167.93,167.85,0.04413234]
[1747770581593,5.9534,167.91,167.85,0.04413234]
[1747770582087,5.9534,167.91,167.88,5.954]
[1747770582287,1.9303,167.93,167.85,0.04413234]
[1747770582804,1.9303,167.93,167.86,5.9547]
[1747770583297,1.9303,167.93,167.85,5.99933234]
[1747770584399,1.9303,167.93,167.86,5.9549]
[1747770584809,5.9542,167.88,167.86,5.9549]
[1747770585002,1.9303,167.93,167.85,5.99933234]
[1747770585305,5.9548,167.87,167.85,0.04413234]
[1747770585500,9.93419509,167.92,167.85,0.04413234]
[1747770585796,5.9549,167.86,167.85,0.04413234]
[1747770588801,93.74,167.91,167.85,0.04413234]
[1747770589903,5.9549,167.86,167.85,0.04413234]
[1747770591203,93.74,167.91,167.85,0.04413234]
[1747770592405,5.9549,167.86,167.85,0.04413234]
[1747770593109,5.9547,167.87,167.85,0.04413234]
[1747770593714,5.9549,167.86,167.85,0.04413234]
[1747770594006,93.74,167.91,167.85,0.04413234]
[1747770594208,5.9549,167.87,167.85,0.04413234]
[1747770594909,5.9549,167.87,167.85,5.99933234]
[1747770596213,5.9549,167.87,167.85,0.04413234]
[1747770598309,93.74,167.91,167.85,0.04413234]
[1747770598906,5.9543,167.88,167.86,5.9547]
[1747770599107,93.74,167.91,167.85,0.04413234]
[1747770599307,1.9303,167.93,167.85,0.04413234]
[1747770600113,5.9541,167.89,167.86,5.9547]
[1747770600316,93.68,167.9,167.79,1.9812]
[1747770600504,1.9355,167.89,167.79,1.9812]
[1747770600809,5.9558,167.84,167.81,5.9566]
[1747770601008,11.86969509,167.89,167.8,1.48919072]
[1747770601208,5.9567,167.81,167.8,1.48919072]
[1747770602009,0.03890515,167.82,167.8,1.48919072]
[1747770602209,0.03890515,167.82,167.81,5.9567]
[1747770602406,5.9543,167.88,167.8,9.93419509]
[1747770602812,1.9355,167.89,167.84,5.9554]
[1747770603016,1.9355,167.89,167.83,93.66]
[1747770603209,1.9355,167.89,167.82,93.66]
[1747770603416,1.9355,167.89,167.84,0.0424964]
[1747770603607,5.9553,167.85,167.84,0.0424964]
[1747770604816,5.9565,167.82,167.8,1.48925606]
[1747770605214,95.6155,167.89,167.8,1.48925606]
[1747770605521,9.93419509,167.88,167.8,1.48925606]
[1747770605715,103.61419509,167.88,167.8,1.48925606]
[1747770606018,0.0402346,167.86,167.82,0.03781661]
[1747770606419,5.9556,167.85,167.82,5.99411661]
[1747770606621,0.0402346,167.86,167.82,0.03781661]
[1747770606810,0.0402346,167.86,167.85,5.9553]
[1747770607011,0.0402346,167.86,167.82,93.71781661]
[1747770607619,5.9954346,167.86,167.83,5.9559]
[1747770608419,5.9553,167.85,167.82,99.67391661]
[1747770608815,0.0402346,167.86,167.82,93.71781661]
[1747770609017,5.9558,167.84,167.82,93.71781661]
[1747770609219,0.0402346,167.86,167.82,93.71781661]
[1747770611222,0.0402346,167.86,167.84,5.9555]
[1747770612523,0.0402346,167.86,167.82,93.71781661]
[1747770612719,5.9952346,167.86,167.82,93.71781661]
[1747770613112,0.0402346,167.86,167.84,5.9556]
[1747770613424,0.0402346,167.86,167.82,93.71781661]
[1747770613926,0.0402346,167.86,167.85,5.9553]
[1747770614527,1.9742,167.93,167.82,93.71781661]
[1747770614735,2.1135,167.94,167.84,9.93419509]
[1747770615123,2.1135,167.94,167.89,5.9536]
[1747770615432,2.1135,167.94,167.88,93.68]
[1747770615617,2.1135,167.94,167.89,0.04546919]
[1747770616030,5.9525,167.93,167.89,0.04546919]
[1747770616235,2.1135,167.94,167.89,0.04546919]
[1747770616422,5.9534,167.91,167.89,0.04546919]
[1747770617732,5.9535,167.9,167.89,0.04546919]
[1747770618035,2.1135,167.94,167.89,0.04546919]
[1747770618235,8.0658,167.94,167.89,0.04546919]
[1747770618431,2.0831,167.97,167.89,0.04546919]
[1747770620733,8.0342,167.97,167.89,0.04546919]
[1747770623136,8.0342,167.97,167.94,5.952]
[1747770623332,8.0342,167.97,167.94,5.99611745]
[1747770623535,2.0831,167.97,167.94,0.04411745]
[1747770623741,2.0831,167.97,167.95,5.9517]
[1747770624042,2.0831,167.97,167.94,0.04411745]
[1747770624429,2.0973,167.98,167.94,0.04411745]
[1747770625234,2.0973,167.98,167.96,5.9511]
[1747770626443,532.4385,168.11,167.94,0.04411745]
[1747770626625,6.1614,168.04,167.94,0.04411745]
[1747770627030,12.1102,168.04,167.94,0.04411745]
[1747770627338,6.1614,168.04,167.94,0.04411745]
[1747770627640,6.1614,168.04,167.98,5.9504]
[1747770627836,6.1614,168.04,167.99,0.03772309]
[1747770628032,5.9496,168.02,167.99,0.03772309]
[1747770628339,6.1614,168.04,167.99,0.03772309]
[1747770628538,5.949,168.03,167.99,0.03772309]
[1747770628741,5.949,168.03,168.0,5.9496]
[1747770629744,6.1614,168.04,168.01,5.9496]
[1747770629745,12.1101,168.04,168.01,5.9496]
[1747770629944,12.1101,168.04,167.99,0.03772309]
[1747770629945,6.1614,168.04,167.99,0.03772309]
[1747770630840,5.9491,168.03,168.0,5.9499]
[1747770631142,5.8991,168.03,168.0,5.9499]
[1747770631542,9.93419509,168.09,168.0,93.6]
[1747770631739,9.93419509,168.09,168.03,0.04428623]
[1747770632039,9.93419509,168.08,168.03,0.04428623]
[1747770632646,5.948,168.06,168.03,5.99298623]
[1747770632840,9.93419509,168.08,168.03,0.04428623]
[1747770633242,5.9481,168.06,168.03,5.99318623]
[1747770633545,9.93419509,168.08,168.03,0.04428623]
[1747770633941,5.9481,168.06,168.03,0.04428623]
[1747770634539,5.9476,168.07,168.03,0.04428623]
[1747770634742,9.93419509,168.08,168.03,0.04428623]
[1747770635041,5.9479,168.06,168.03,5.99298623]
[1747770635941,9.93419509,168.08,168.03,0.04428623]
[1747770636139,1.919,168.1,168.04,93.58]
[1747770636334,7.8655,168.1,168.04,93.58]
[1747770636742,1.919,168.1,168.04,93.58]
[1747770637143,5.9468,168.09,168.05,5.948]
[1747770637539,5.9472,168.08,168.04,93.58]
[1747770637742,1.919,168.1,168.04,93.58]
[1747770637939,11.85319509,168.1,168.04,93.58]
[1747770638143,105.43319509,168.1,168.03,0.04428623]
[1747770638544,1.919,168.1,168.03,0.04428623]
[1747770638741,93.58,168.18,168.04,93.58]
[1747770638941,2.1043,168.15,168.09,0.04169146]
[1747770639248,9.93419509,168.14,168.09,0.04169146]
[1747770639443,5.946,168.12,168.09,0.04169146]
[1747770639647,2.1043,168.15,168.09,0.04169146]
[1747770640149,5.9464,168.1,168.09,0.04169146]
[1747770640352,12.03849509,168.15,168.09,0.04169146]
[1747770640543,5.9463,168.11,168.09,0.04169146]
[1747770640851,12.03849509,168.15,168.09,0.04169146]
[1747770641150,5.9464,168.1,168.09,0.04169146]
[1747770645457,2.0051,168.18,168.09,0.04169146]
[1747770645751,9.93419509,168.17,168.09,0.04169146]
[1747770645953,5.9457,168.12,168.09,0.04169146]
[1747770646149,4.0405,168.18,168.09,0.04169146]
[1747770646346,9.93419509,168.16,168.09,0.04169146]
[1747770646546,9.93419509,168.17,168.11,5.9458]
[1747770646746,9.93419509,168.17,168.12,0.04122994]
[1747770646951,3.07055766,168.23,168.13,93.54]
[1747770647152,3.07055766,168.23,168.16,0.04425509]
[1747770647855,3.07055766,168.23,168.17,93.54]
[1747770648647,5.9429,168.2,168.17,93.54]
[1747770648847,3.07055766,168.23,168.17,93.54]
[1747770649255,5.9424,168.22,168.17,99.4839]
[1747770649463,3.07055766,168.23,168.17,99.4839]
[1747770649753,3.07055766,168.23,168.2,5.9426]
[1747770649978,3.07055766,168.23,168.2,5.98313207]
[1747770650257,3.07055766,168.23,168.2,0.04053207]
[1747770651157,3.07055766,168.23,168.21,5.9423]
[1747770651457,3.07055766,168.23,168.2,0.04053207]
[1747770651655,3.07055766,168.23,168.2,5.98313207]
[1747770652257,3.07055766,168.23,168.21,5.9424]
[1747770652448,3.07055766,168.23,168.21,93.48]
[1747770652844,3.07055766,168.23,168.22,5.9422]
[1747770653552,3.07055766,168.23,168.21,93.48]
[1747770653749,5.9422,168.22,168.2,0.04053207]
[1747770654150,3.07055766,168.23,168.2,0.04053207]
[1747770654352,9.01265766,168.23,168.2,0.04053207]
[1747770654655,3.07055766,168.23,168.2,0.04053207]
[1747770655054,5.9422,168.22,168.2,0.04053207]
[1747770655257,3.07055766,168.23,168.2,0.04053207]
[1747770657060,5.18095766,168.23,168.2,0.04053207]
[1747770657758,5.9425,168.21,168.2,0.04053207]
[1747770657962,9.93419509,168.21,168.16,93.9]
[1747770658259,9.93419509,168.21,168.14,2.0039]
[1747770658446,9.93419509,168.21,168.15,5.9444]
[1747770658652,9.93419509,168.21,168.14,2.0039]
[1747770658847,0.03998943,168.19,168.16,0.0387028]
[1747770659566,0.03998943,168.19,168.18,5.9436]
[1747770661054,3.07055766,168.23,168.17,93.9]
[1747770661256,3.07055766,168.23,168.18,3.9362]
[1747770661555,3.07055766,168.23,168.21,5.9422]
[1747770661756,3.07055766,168.23,168.18,3.9362]
[1747770662164,3.07055766,168.23,168.19,0.04027751]
[1747770662363,3.07055766,168.23,168.22,5.9422]
[1747770664266,2.0509,168.31,168.21,93.9]
[1747770664564,2.0509,168.31,168.24,0.03936311]
[1747770664889,2.0509,168.31,168.26,5.9407]
[1747770665062,5.9399,168.29,168.26,5.9407]
[1747770665263,5.9399,168.29,168.24,5.98066311]
[1747770665565,2.0509,168.31,168.24,0.03936311]
[1747770666167,5.9409,168.26,168.24,0.03936311]
[1747770666362,2.0509,168.31,168.24,0.03936311]
[1747770666568,103.81419509,168.3,168.24,0.03936311]
[1747770666762,5.9408,168.26,168.24,0.03936311]
[1747770668363,5.9411,168.25,168.24,0.03936311]
[1747770669368,5.9409,168.26,168.24,0.03936311]
[1747770669867,2.0509,168.31,168.24,0.03936311]
[1747770670068,2.0509,168.31,168.24,5.98056311]
[1747770670273,5.9397,168.29,168.24,0.03936311]
[1747770670463,11.98509509,168.31,168.24,0.03936311]
[1747770670669,11.98509509,168.31,168.25,5.9409]
[1747770670963,5.9399,168.29,168.25,5.9409]
[1747770671176,5.9399,168.29,168.26,5.9407]
[1747770671665,5.9399,168.29,168.25,93.86]
[1747770671868,5.9399,168.29,168.25,99.8009]
[1747770672169,2.0509,168.31,168.25,93.86]
[1747770672864,5.9396,168.3,168.26,5.9407]